bitfinex/quotes_SOLUSD_20241024
["timestamp","ask_amount","ask_price","bid_price","bid_amount"]
[1729760165129,0.25098,172.64,172.59,42.39410966]
[1729760165328,42.39410966,172.65,172.59,42.39410966]
[1729760165552,24.027864,172.65,172.61,42.39410966]
[1729760165737,42.39410966,172.68,172.63,42.39410966]
[1729760165934,48.18530966,172.68,172.63,42.39410966]
[1729760166237,42.39410966,172.68,172.63,42.39410966]
[1729760166435,42.39410966,172.69,172.64,42.39410966]
[1729760166640,48.18480966,172.69,172.64,42.39410966]
[1729760167054,43.00809516,172.7,172.65,42.39410966]
[1729760167354,0.6139855,172.7,172.68,42.39410966]
[1729760167738,0.6139855,172.7,172.69,42.39410966]
[1729760169746,0.6139855,172.7,172.68,42.39410966]
[1729760170057,0.6139855,172.7,172.69,42.39410966]
[1729760170836,0.6139855,172.7,172.66,42.39410966]
[1729760171439,0.6139855,172.7,172.65,42.39410966]
[1729760171753,42.39410966,172.69,172.64,42.39410966]
[1729760172259,43.00809516,172.7,172.64,42.39410966]
[1729760172959,43.00809516,172.7,172.65,42.39410966]
[1729760173453,43.00809516,172.7,172.67,42.39410966]
[1729760173454,0.6139855,172.7,172.67,42.39410966]
[1729760173874,0.6139855,172.7,172.66,42.39410966]
[1729760174048,0.6139855,172.7,172.65,42.39410966]
[1729760174235,43.00809516,172.7,172.65,42.39410966]
[1729760175659,43.00809516,172.7,172.64,42.39410966]
[1729760176239,42.51959966,172.69,172.63,21.19705483]
[1729760176542,42.39410966,172.65,172.6,42.39410966]
[1729760177562,42.39410966,172.64,172.59,42.39410966]
[1729760177779,42.39410966,172.61,172.55,48.91540966]
[1729760178067,42.39410966,172.6,172.55,42.39410966]
[1729760178869,42.39410966,172.6,172.54,42.39410966]
[1729760179367,42.39410966,172.58,172.52,42.39410966]
[1729760179567,42.39410966,172.58,172.53,42.39410966]
[1729760180165,42.39410966,172.59,172.53,42.39410966]
[1729760180469,6.5158,172.63,172.51,6.5213]
[1729760180470,42.39410966,172.6,172.55,42.39410966]
[1729760181385,42.39410966,172.61,172.56,42.39410966]
[1729760181964,21.19705483,172.61,172.56,42.39410966]
[1729760182162,0.12549,172.61,172.57,42.39410966]
[1729760182869,0.12549,172.61,172.56,42.39410966]
[1729760183743,42.39410966,172.61,172.56,42.39410966]
[1729760184148,0.12549,172.62,172.57,42.39410966]
[1729760184149,42.39410966,172.62,172.57,42.39410966]
[1729760184348,42.39410966,172.64,172.59,42.39410966]
[1729760184549,48.18650966,172.64,172.58,42.39410966]
[1729760185678,42.39410966,172.59,172.54,42.39410966]
[1729760185854,42.39410966,172.59,172.53,42.39410966]
[1729760186672,42.39410966,172.59,172.54,42.39410966]
[1729760187166,42.39410966,172.6,172.54,42.39410966]
[1729760187373,42.39410966,172.59,172.54,42.39410966]
[1729760187582,42.39410966,172.58,172.52,42.39410966]
[1729760187752,42.39410966,172.56,172.51,42.39410966]
[1729760187955,42.39410966,172.57,172.51,42.39410966]
[1729760188162,0.12549,172.56,172.51,42.39410966]
[1729760188779,0.12549,172.56,172.52,42.39410966]
[1729760188966,0.12549,172.56,172.51,42.39410966]
[1729760189278,42.51959966,172.56,172.51,42.39410966]
[1729760189479,0.12549,172.56,172.51,42.39410966]
[1729760189982,0.12549,172.56,172.47,6.5213]
[1729760189983,42.51959966,172.54,172.49,42.39410966]
[1729760190157,42.51959966,172.54,172.48,42.39410966]
[1729760190471,42.51959966,172.54,172.49,42.39410966]
[1729760190678,42.51959966,172.54,172.44,42.49410966]
[1729760190679,0.12549,172.54,172.52,42.39410966]
[1729760191057,0.12549,172.55,172.51,42.39410966]
[1729760191359,0.12549,172.55,172.5,42.39410966]
[1729760191769,0.12549,172.53,172.48,42.39410966]
[1729760191973,24.027864,172.53,172.48,42.39410966]
[1729760192576,0.25098,172.53,172.49,42.39410966]
[1729760193388,23.776884,172.54,172.5,42.39410966]
[1729760193888,48.18850966,172.58,172.52,42.39410966]
[1729760194576,42.39410966,172.57,172.51,42.39410966]
[1729760194775,42.39410966,172.54,172.49,42.39410966]
[1729760195376,42.39410966,172.54,172.43,20.7325]
[1729760195377,42.39410966,172.53,172.48,42.39410966]
[1729760195778,24.027864,172.54,172.51,42.39410966]
[1729760195963,24.027864,172.55,172.51,42.39410966]
[1729760196398,0.25098,172.55,172.51,42.39410966]
[1729760196683,24.027864,172.56,172.51,42.39410966]
[1729760197367,24.027864,172.54,172.5,42.39410966]
[1729760198177,0.12549,172.52,172.48,42.39410966]
[1729760198384,0.12549,172.52,172.47,42.39410966]
[1729760198565,66.29648366,172.5,172.45,42.39410966]
[1729760198766,66.29648366,172.5,172.44,42.39410966]
[1729760199065,0.12549,172.49,172.44,42.39410966]
[1729760199583,42.51959966,172.47,172.42,42.39410966]
[1729760199776,0.12549,172.47,172.42,42.39410966]
[1729760200174,42.51959966,172.47,172.42,42.39410966]
[1729760200370,42.51959966,172.47,172.41,42.39410966]
[1729760200567,0.12549,172.45,172.4,42.39410966]
[1729760200972,0.12549,172.46,172.41,42.39410966]
[1729760201479,0.12549,172.46,172.42,42.39410966]
[1729760201677,24.027864,172.47,172.42,42.39410966]
[1729760201873,24.027864,172.48,172.43,42.39410966]
[1729760202875,0.12549,172.48,172.44,42.39410966]
[1729760203082,24.027864,172.49,172.44,42.39410966]
[1729760203966,6.5816,172.51,172.48,42.39410966]
[1729760204169,6.5816,172.51,172.5,42.39410966]
[1729760204389,6.5816,172.51,172.49,42.39410966]
[1729760204590,6.5816,172.51,172.48,42.39410966]
[1729760204879,6.5816,172.51,172.47,42.39410966]
[1729760205086,6.5816,172.51,172.48,42.39410966]
[1729760206083,42.39410966,172.53,172.48,42.39410966]
[1729760206267,42.39410966,172.53,172.41,0.1]
[1729760206268,23.902374,172.52,172.47,42.39410966]
[1729760206462,23.902374,172.52,172.48,42.39410966]
[1729760207575,66.29648366,172.52,172.47,42.39410966]
[1729760208289,50.3242116,172.52,172.47,26.4218376]
[1729760208476,0.12549,172.49,172.44,26.4218376]
[1729760209071,0.12549,172.49,172.45,26.4218376]
[1729760210590,0.12549,172.49,172.46,26.4218376]
[1729760210790,0.12549,172.49,172.39,0.2]
[1729760210791,0.12549,172.49,172.45,26.4218376]
[1729760211687,0.12549,172.5,172.45,26.4218376]
[1729760212096,26.4218376,172.51,172.45,26.4218376]
[1729760212871,26.4218376,172.52,172.46,26.4218376]
[1729760213071,26.4218376,172.53,172.47,26.4218376]
[1729760213486,23.776884,172.52,172.47,26.4218376]
[1729760214197,26.4218376,172.53,172.47,26.4218376]
[1729760214373,26.4218376,172.54,172.49,26.4218376]
[1729760216196,26.4218376,172.54,172.48,26.4218376]
[1729760216771,26.4218376,172.55,172.49,26.4218376]
[1729760216971,24.027864,172.54,172.49,26.4218376]
[1729760217197,50.4497016,172.54,172.49,26.4218376]
[1729760217394,26.4218376,172.53,172.48,26.4218376]
[1729760217699,23.776884,172.54,172.49,26.4218376]
[1729760218169,50.1987216,172.54,172.49,26.4218376]
[1729760220377,23.776884,172.54,172.49,26.4218376]
[1729760221496,26.4218376,172.51,172.46,26.4218376]
[1729760222800,32.2185376,172.51,172.45,26.4218376]
[1729760223184,26.5473276,172.5,172.45,26.4218376]
[1729760223780,0.12549,172.5,172.45,26.4218376]
[1729760224104,0.12549,172.5,172.46,26.4218376]
[1729760224402,5.7967,172.51,172.47,26.4218376]
[1729760224590,23.902374,172.52,172.47,26.4218376]
[1729760226008,50.3242116,172.52,172.47,26.4218376]
[1729760226301,50.3242116,172.52,172.46,26.4218376]
[1729760226600,26.4218376,172.5,172.41,0.1]
[1729760226900,26.4218376,172.46,172.41,26.4218376]
[1729760227074,0.12549,172.42,172.37,26.4218376]
[1729760227274,0.12549,172.42,172.38,26.4218376]
[1729760227497,0.12549,172.42,172.39,26.4218376]
[1729760228373,0.12549,172.42,172.27,6.04880784]
[1729760228374,6.04868,172.48,172.41,26.4218376]
[1729760228578,5.92319,172.48,172.44,26.4218376]
[1729760228802,5.92319,172.48,172.43,26.4218376]
[1729760231996,0.25098,172.46,172.33,0.2]
[1729760232299,0.12549,172.44,172.4,26.4218376]
[1729760232984,23.902374,172.44,172.4,26.4218376]
[1729760233781,0.12549,172.44,172.41,26.4218376]
[1729760234193,0.12549,172.44,172.42,26.4218376]
[1729760234397,0.12549,172.45,172.42,26.4218376]
[1729760235200,26.4218376,172.47,172.42,26.4218376]
[1729760236080,26.4218376,172.48,172.43,26.4218376]
[1729760236285,24.027864,172.47,172.43,26.4218376]
[1729760236505,50.4497016,172.47,172.42,26.4218376]
[1729760236695,26.4218376,172.5,172.45,26.4218376]
[1729760236878,26.4218376,172.52,172.46,26.4218376]
[1729760237085,26.4218376,172.54,172.48,26.4218376]
[1729760238926,26.4218376,172.55,172.5,26.4218376]
[1729760239127,26.4218376,172.57,172.51,26.4218376]
[1729760239304,26.4218376,172.56,172.51,26.4218376]
[1729760239617,26.4218376,172.55,172.5,26.4218376]
[1729760240225,26.4218376,172.56,172.51,26.4218376]
[1729760240410,24.027864,172.55,172.51,26.4218376]
[1729760242307,50.4497016,172.55,172.5,26.4218376]
[1729760242913,24.027864,172.55,172.51,26.4218376]
[1729760245311,29.823464,172.55,172.51,26.4218376]
[1729760246021,56.2453016,172.55,172.51,26.4218376]
[1729760246611,56.2453016,172.55,172.5,26.4218376]
[1729760247021,26.5473276,172.51,172.46,26.4218376]
[1729760247323,26.4218376,172.5,172.45,26.4218376]
[1729760247627,26.5473276,172.51,172.46,26.4218376]
[1729760248631,50.3242116,172.48,172.43,26.4218376]
[1729760248945,0.12549,172.47,172.43,26.4218376]
[1729760249126,0.12549,172.47,172.44,26.4218376]
[1729760249336,0.12549,172.47,172.4,0.1]
[1729760249337,0.12549,172.49,172.46,26.4218376]
[1729760252009,0.12549,172.49,172.44,26.4218376]
[1729760252215,26.5473276,172.49,172.44,26.4218376]
[1729760252435,0.12549,172.49,172.45,26.4218376]
[1729760252731,0.12549,172.49,172.46,26.4218376]
[1729760254041,0.12549,172.49,172.45,26.4218376]
[1729760254336,26.4218376,172.53,172.47,26.4218376]
[1729760255023,26.4218376,172.51,172.46,26.4218376]
[1729760255221,26.4218376,172.51,172.45,26.4218376]
[1729760256233,26.5473276,172.52,172.46,26.4218376]
[1729760256622,26.4218376,172.49,172.36,14.4112]
[1729760256819,26.5473276,172.47,172.42,26.4218376]
[1729760257016,0.12549,172.47,172.42,26.4218376]
[1729760257444,5.92389,172.47,172.42,26.4218376]
[1729760258030,32.3457276,172.47,172.41,26.4218376]
[1729760258528,26.5473276,172.45,172.4,26.4218376]
[1729760259232,0.12549,172.45,172.4,26.4218376]
[1729760259622,5.92429,172.45,172.4,26.4218376]
[1729760260240,0.12549,172.45,172.41,26.4218376]
[1729760260545,0.12549,172.45,172.36,14.2112]
[1729760260546,0.12549,172.45,172.4,26.4218376]
[1729760260750,26.5473276,172.45,172.4,26.4218376]
[1729760261451,0.12549,172.43,172.39,26.4218376]
[1729760261948,0.12549,172.43,172.38,26.4218376]
[1729760263351,16.4938,172.42,172.38,26.4218376]
[1729760263649,16.4938,172.42,172.37,26.4218376]
[1729760264542,0.12549,172.43,172.39,26.4218376]
[1729760265429,0.12549,172.44,172.4,26.4218376]
[1729760265640,16.4938,172.46,172.42,26.4218376]
[1729760266030,6.1541,172.48,172.43,26.4218376]
[1729760266225,26.4218376,172.49,172.43,26.4218376]
[1729760266433,26.4218376,172.48,172.42,26.4218376]
[1729760267648,50.3242116,172.45,172.4,26.4218376]
[1729760267948,50.3242116,172.45,172.39,26.4218376]
[1729760268152,50.3242116,172.45,172.4,26.4218376]
[1729760268535,50.3242116,172.45,172.25,27.86147536]
[1729760268536,44.027864,172.4,172.25,27.86147536]
[1729760268737,0.12549,172.33,172.29,1.83]
[1729760268944,0.12549,172.33,172.28,26.4218376]
[1729760269148,5.92829,172.33,172.28,26.4218376]
[1729760271241,32.3501276,172.33,172.25,20.7976]
[1729760271447,32.3501276,172.33,172.27,26.4218376]
[1729760272043,32.2246376,172.33,172.27,26.4218376]
[1729760272929,26.4218376,172.34,172.28,26.4218376]
[1729760273149,0.25098,172.36,172.31,26.4218376]
[1729760273454,50.4497016,172.36,172.3,26.4218376]
[1729760273646,50.1987216,172.36,172.3,26.4218376]
[1729760275446,26.4218376,172.36,172.3,26.4218376]
[1729760278940,26.4218376,172.36,172.31,26.4218376]
[1729760279140,26.4218376,172.36,172.3,26.4218376]
[1729760279655,26.4218376,172.35,172.29,26.4218376]
[1729760279962,26.4218376,172.36,172.3,26.4218376]
[1729760282156,26.4218376,172.36,172.31,26.4218376]
[1729760282457,26.4218376,172.36,172.3,26.4218376]
[1729760283562,26.4218376,172.36,172.31,26.4218376]
[1729760284335,32.8668376,172.38,172.33,26.4218376]
[1729760284540,0.25098,172.37,172.35,26.4218376]
[1729760284735,6.209,172.42,172.36,26.4218376]
[1729760284968,6.209,172.42,172.38,26.4218376]
[1729760285656,42.6871376,172.43,172.38,26.4218376]
[1729760285960,16.2653,172.43,172.39,26.4218376]
[1729760286543,16.2653,172.43,172.38,26.4218376]
[1729760287151,16.2653,172.43,172.39,26.4218376]
[1729760287343,16.2653,172.43,172.38,26.4218376]
[1729760287545,50.4497016,172.42,172.36,26.4218376]
[1729760288061,50.4497016,172.42,172.37,26.4218376]
[1729760288635,16.2653,172.4,172.26,13.2109188]
[1729760288837,26.5473276,172.33,172.28,0.09]
[1729760289165,26.5473276,172.33,172.27,26.4218376]
[1729760290167,32.2249376,172.32,172.26,26.4218376]
[1729760290349,5.8031,172.32,172.27,26.4218376]
[1729760290746,32.2249376,172.32,172.26,26.4218376]
[1729760291750,5.8031,172.32,172.27,26.4218376]
[1729760292367,26.4218376,172.35,172.29,26.4218376]
[1729760294667,26.4218376,172.35,172.3,26.4218376]
[1729760295768,26.4218376,172.35,172.29,26.4218376]
[1729760300464,26.4218376,172.35,172.3,26.4218376]
[1729760300666,26.4218376,172.35,172.25,0.1]
[1729760300873,26.4218376,172.35,172.29,26.4218376]
[1729760302146,26.4218376,172.33,172.28,26.4218376]
[1729760302374,26.4218376,172.35,172.29,26.4218376]
[1729760305677,26.4218376,172.35,172.3,26.4218376]
[1729760306169,26.4218376,172.33,172.23,20.1]
[1729760306480,16.94575552,172.34,172.28,16.94575552]
[1729760306854,16.94575552,172.35,172.29,16.94575552]
[1729760309459,16.94575552,172.36,172.3,16.94575552]
[1729760309856,24.027864,172.36,172.31,16.94575552]
[1729760310053,24.027864,172.36,172.26,67.78302208]
[1729760310054,40.97361952,172.36,172.3,16.94575552]
[1729760311776,40.97361952,172.37,172.31,16.94575552]
[1729760311992,16.94575552,172.37,172.31,16.94575552]
[1729760312155,24.027864,172.37,172.31,16.94575552]
[1729760312568,40.97361952,172.37,172.31,16.94575552]
[1729760314885,16.94575552,172.34,172.23,20.1]
[1729760315084,16.94575552,172.35,172.29,16.94575552]
[1729760315383,24.027864,172.35,172.3,16.94575552]
[1729760315561,16.94575552,172.36,172.3,16.94575552]
[1729760315880,40.97361952,172.37,172.31,16.94575552]
[1729760316083,24.027864,172.37,172.31,16.94575552]
[1729760316379,40.97361952,172.37,172.31,16.94575552]
[1729760318265,40.97361952,172.37,172.3,16.94575552]
[1729760322678,40.97361952,172.37,172.31,16.94575552]
[1729760324878,16.94575552,172.36,172.3,16.94575552]
[1729760329381,16.94575552,172.35,172.28,16.94575552]
[1729760329979,16.94575552,172.33,172.24,1.73]
[1729760330190,16.94575552,172.33,172.27,16.94575552]
[1729760330359,8.47287776,172.33,172.28,16.94575552]
[1729760330558,15.964,172.34,172.28,16.94575552]
[1729760330559,32.90975552,172.34,172.28,16.94575552]
[1729760331283,16.94575552,172.32,172.23,20.0]
[1729760331582,16.94575552,172.33,172.27,16.94575552]
[1729760331789,24.027864,172.33,172.28,16.94575552]
[1729760333297,16.94575552,172.32,172.26,16.94575552]
[1729760333789,40.97361952,172.33,172.27,16.94575552]
[1729760334266,24.027864,172.33,172.28,16.94575552]
[1729760334469,15.964,172.34,172.29,16.94575552]
[1729760334668,15.964,172.34,172.3,16.94575552]
[1729760334968,32.90975552,172.34,172.28,16.94575552]
[1729760335982,15.964,172.34,172.29,16.94575552]
[1729760336371,15.964,172.34,172.3,16.94575552]
[1729760336772,24.027864,172.37,172.3,16.94575552]
[1729760336980,16.94575552,172.36,172.3,16.94575552]
[1729760340887,16.94575552,172.35,172.23,20.2]
[1729760341193,16.94575552,172.35,172.29,16.94575552]
[1729760342173,16.94575552,172.35,172.24,1.83]
[1729760342174,16.94575552,172.34,172.28,16.94575552]
[1729760342679,16.94575552,172.35,172.28,16.94575552]
[1729760344291,16.94575552,172.35,172.29,16.94575552]
[1729760346696,16.94575552,172.33,172.22,14.2112]
[1729760347005,16.94575552,172.33,172.27,16.94575552]
[1729760347480,16.94575552,172.32,172.22,14.2112]
[1729760347676,16.94575552,172.32,172.26,16.94575552]
[1729760349909,24.027864,172.32,172.27,16.94575552]
[1729760350498,24.027864,172.32,172.28,16.94575552]
[1729760350704,15.162,172.33,172.3,16.94575552]
[1729760351084,15.162,172.33,172.29,16.94575552]
[1729760351295,15.162,172.33,172.28,16.94575552]
[1729760352694,32.10775552,172.33,172.27,16.94575552]
[1729760354502,15.162,172.33,172.28,16.94575552]
[1729760354720,15.162,172.33,172.3,16.94575552]
[1729760355087,15.162,172.33,172.29,16.94575552]
[1729760358386,16.94575552,172.35,172.14,0.1]
[1729760358387,0.12549,172.29,172.14,0.1]
[1729760358594,24.027864,172.29,172.2,16.94575552]
[1729760358915,24.027864,172.29,172.21,16.94575552]
[1729760358916,0.12549,172.25,172.21,16.94575552]
[1729760359213,0.12549,172.25,172.2,16.94575552]
[1729760359905,14.40396776,172.25,172.15,0.2]
[1729760360087,0.12549,172.25,172.21,16.94575552]
[1729760360284,24.027864,172.29,172.22,16.94575552]
[1729760360489,40.97361952,172.29,172.23,16.94575552]
[1729760361519,40.97361952,172.29,172.24,16.94575552]
[1729760361520,24.027864,172.29,172.24,16.94575552]
[1729760362100,0.12549,172.29,172.24,16.94575552]
[1729760362306,24.027864,172.3,172.25,16.94575552]
[1729760362505,24.027864,172.3,172.24,16.94575552]
[1729760362803,40.97361952,172.3,172.24,16.94575552]
[1729760362988,16.94575552,172.29,172.2,15.0789]
[1729760363188,16.94575552,172.29,172.23,16.94575552]
[1729760364508,0.12549,172.28,172.2,15.0789]
[1729760364714,17.07124552,172.28,172.22,16.94575552]
[1729760366591,16.94575552,172.27,172.21,16.94575552]
[1729760366792,16.94575552,172.26,172.16,20.0]
[1729760367000,16.94575552,172.24,172.15,15.2789]
[1729760367292,0.25098,172.25,172.2,16.94575552]
[1729760367495,16.1693,172.25,172.15,0.2]
[1729760367696,17.07124552,172.21,172.15,0.2]
[1729760367897,17.07124552,172.21,172.16,16.94575552]
[1729760368709,17.07124552,172.21,172.15,17.14575552]
[1729760368921,17.07124552,172.21,172.16,16.94575552]
[1729760370021,0.12549,172.21,172.16,16.94575552]
[1729760372993,16.94575552,172.2,172.15,0.2]
[1729760373410,24.027864,172.21,172.16,16.94575552]
[1729760374529,24.027864,172.21,172.15,0.2]
[1729760374824,24.027864,172.19,172.15,0.2]
[1729760375114,0.25098,172.19,172.15,17.14575552]
[1729760375314,0.25098,172.19,172.15,0.2]
[1729760375694,0.25098,172.19,172.15,17.14575552]
[1729760378304,0.25098,172.19,172.15,0.2]
[1729760378720,0.25098,172.19,172.15,17.14575552]
[1729760379221,8.47287776,172.16,172.09,0.6139855]
[1729760379418,24.027864,172.1,172.09,0.6139855]
[1729760379626,63.97071952,172.1,172.09,0.6139855]
[1729760379823,47.024964,172.1,172.09,0.6139855]
[1729760380021,24.027864,172.1,172.09,0.6139855]
[1729760380705,0.12549,172.1,172.09,0.6139855]
[1729760381109,0.12549,172.12,172.09,0.6139855]
[1729760381312,0.25098,172.12,172.09,0.6139855]
[1729760383001,40.72263952,172.11,172.09,0.6139855]
[1729760383236,0.12549,172.1,172.09,0.6139855]
[1729760383724,17.07124552,172.12,172.09,0.6139855]
[1729760384023,0.12549,172.11,172.09,0.6139855]
[1729760384624,6.55373025,172.2,172.09,0.6139855]
[1729760384803,16.94575552,172.17,172.11,16.94575552]
[1729760384999,0.1,172.16,172.09,0.6139855]
[1729760385317,0.1,172.17,172.09,0.6139855]
[1729760385527,16.94575552,172.11,172.09,0.6139855]
[1729760385900,20.12549,172.16,172.09,0.6139855]
[1729760386115,0.12549,172.12,172.09,0.6139855]
[1729760386503,24.027864,172.12,172.09,0.6139855]
[1729760386710,0.25098,172.12,172.09,17.55974102]
[1729760387022,22.9971,172.19,172.1,16.94575552]
[1729760387215,16.94575552,172.16,172.1,16.94575552]
[1729760388435,17.07124552,172.15,172.09,0.6139855]
[1729760388636,17.07124552,172.15,172.09,17.55974102]
[1729760389341,0.12549,172.15,172.1,16.94575552]
[1729760390544,0.12549,172.15,172.11,16.94575552]
[1729760391017,24.027864,172.16,172.11,16.94575552]
[1729760391620,40.97361952,172.16,172.1,16.94575552]
[1729760391921,16.94575552,172.15,172.09,17.55974102]
[1729760392143,0.1,172.13,172.09,0.6139855]
[1729760392320,60.97361952,172.1,172.09,0.6139855]
[1729760393037,44.027864,172.1,172.09,0.6139855]
[1729760393242,60.97361952,172.1,172.09,0.6139855]
[1729760394219,60.97361952,172.1,171.95,0.1]
[1729760394220,44.027864,172.09,171.94,15.8963]
[1729760394420,16.94575552,172.05,171.94,15.8963]
[1729760394619,16.94575552,172.06,171.99,16.94575552]
[1729760394815,16.94575552,172.07,172.01,16.94575552]
[1729760395021,16.94575552,172.06,171.95,0.1]
[1729760395446,16.94575552,172.06,171.99,16.94575552]
[1729760396241,24.027864,172.09,171.94,15.8963]
[1729760396442,24.027864,172.03,171.98,26.5710265]
[1729760396741,0.25098,172.03,171.92,0.6139855]
[1729760396944,0.25098,172.01,171.95,26.5710265]
[1729760397126,24.027864,172.01,171.96,26.5710265]
[1729760397444,24.027864,172.01,171.92,0.6139855]
[1729760397445,24.027864,172.01,171.95,26.5710265]
[1729760397941,0.25098,172.01,171.97,26.5710265]
[1729760398125,23.776884,172.02,171.98,26.5710265]
[1729760398334,0.25098,172.02,171.97,26.5710265]
[1729760398523,23.776884,172.04,171.99,26.5710265]
[1729760398841,26.5710265,172.07,172.01,26.5710265]
[1729760399058,26.5710265,172.06,172.0,26.5710265]
[1729760399234,26.5710265,172.06,171.99,26.5710265]
[1729760399729,26.5710265,172.07,172.01,26.5710265]
[1729760400330,26.5710265,172.07,171.97,15.8963]
[1729760400331,35.33551325,172.09,172.03,26.5710265]
[1729760400535,22.05,172.09,172.03,26.5710265]
[1729760400730,48.6210265,172.09,172.03,26.5710265]
[1729760401245,26.5710265,172.08,171.97,22.2394]
[1729760401549,26.5710265,172.08,172.02,26.5710265]
[1729760401726,24.027864,172.07,172.02,26.5710265]
[1729760401927,24.027864,172.07,172.03,26.5710265]
[1729760402122,0.25098,172.07,172.03,26.5710265]
[1729760403430,0.25098,172.07,172.05,26.5710265]
[1729760403834,0.25098,172.07,172.04,26.5710265]
[1729760404630,0.25098,172.07,172.05,26.5710265]
[1729760405039,0.12549,172.07,172.04,26.5710265]
[1729760405237,0.25098,172.07,172.05,26.5710265]
[1729760405447,0.25098,172.07,172.03,26.5710265]
[1729760405752,0.25098,172.07,172.04,26.5710265]
[1729760406650,0.25098,172.07,172.05,26.5710265]
[1729760406845,0.25098,172.07,172.04,26.5710265]
[1729760407230,23.902374,172.13,172.06,26.5710265]
[1729760407431,23.902374,172.13,171.97,22.2394]
[1729760407432,26.5710265,172.18,172.12,26.5710265]
[1729760407747,26.5710265,172.18,172.13,26.5710265]
[1729760407947,22.05,172.19,172.14,26.5710265]
[1729760408332,6.1154,172.19,172.16,26.5710265]
[1729760408538,26.5710265,172.21,172.16,26.5710265]
[1729760408755,26.5710265,172.22,172.16,26.5710265]
[1729760409139,6.1154,172.24,172.16,26.5710265]
[1729760409335,6.1154,172.24,172.19,26.5710265]
[1729760409558,26.5710265,172.25,172.2,13.28551325]
[1729760409754,26.5710265,172.26,172.2,26.5710265]
[1729760409951,42.2071265,172.27,172.21,26.5710265]
[1729760410150,26.5710265,172.26,172.21,26.5710265]
[1729760410759,15.6361,172.27,172.13,0.1]
[1729760410760,15.6361,172.27,172.22,26.5710265]
[1729760411136,32.7423265,172.28,172.22,26.5710265]
[1729760411356,26.5710265,172.26,172.21,26.5710265]
[1729760411657,26.5710265,172.24,172.15,23.0781]
[1729760411843,26.5710265,172.24,172.18,26.5710265]
[1729760412049,26.5710265,172.25,172.19,26.5710265]
[1729760412352,0.12549,172.24,172.19,26.5710265]
[1729760412537,24.027864,172.24,172.19,26.5710265]
[1729760412733,24.027864,172.24,172.15,23.0781]
[1729760412734,50.5988905,172.24,172.18,26.5710265]
[1729760413535,24.027864,172.24,172.19,26.5710265]
[1729760414150,24.027864,172.24,172.2,26.5710265]
[1729760414556,24.027864,172.24,172.19,26.5710265]
[1729760416858,29.833664,172.24,172.19,26.5710265]
[1729760417548,29.833664,172.24,172.15,23.0781]
[1729760417549,29.833664,172.24,172.2,26.5710265]
[1729760417757,29.833664,172.24,172.19,26.5710265]
[1729760418145,0.25098,172.24,172.2,26.5710265]
[1729760418349,32.3762265,172.26,172.2,26.5710265]
[1729760418552,32.3759265,172.27,172.22,26.5710265]
[1729760418754,5.8049,172.27,172.22,26.5710265]
[1729760419466,32.3752265,172.29,172.24,26.5710265]
[1729760419665,5.8042,172.29,172.25,26.5710265]
[1729760419850,5.8038,172.3,172.25,26.5710265]
[1729760420162,32.3748265,172.3,172.24,26.5710265]
[1729760421073,5.8038,172.3,172.25,26.5710265]
[1729760421969,32.3748265,172.3,172.24,26.5710265]
[1729760422665,24.027864,172.29,172.24,26.5710265]
[1729760423256,29.832064,172.29,172.24,26.5710265]
[1729760424053,29.832064,172.29,172.17,0.1]
[1729760424263,26.5710265,172.28,172.23,26.5710265]
[1729760424468,56.4030905,172.29,172.23,26.5710265]
[1729760424869,56.4030905,172.29,172.21,26.5710265]
[1729760424870,50.3479105,172.27,172.21,26.5710265]
[1729760425169,32.6273065,172.26,172.2,26.5710265]
[1729760425666,6.05628,172.26,172.21,26.5710265]
[1729760426057,50.3479105,172.25,172.19,26.5710265]
[1729760426261,23.776884,172.25,172.21,26.5710265]
[1729760427466,50.5988905,172.26,172.21,26.5710265]
[1729760427766,56.4039905,172.26,172.21,26.5710265]
[1729760427966,56.4039905,172.26,172.2,26.5710265]
[1729760428150,50.5988905,172.24,172.18,26.5710265]
[1729760428358,26.5710265,172.23,172.17,26.5710265]
[1729760428555,26.5710265,172.18,172.11,15.582]
[1729760428762,26.5710265,172.18,172.12,26.5710265]
[1729760428949,24.027864,172.17,172.12,26.5710265]
[1729760429150,26.5710265,172.16,172.11,26.5710265]
[1729760429376,26.5710265,172.15,172.09,26.5710265]
[1729760429573,26.5710265,172.14,172.09,26.5710265]
[1729760430064,26.5710265,172.14,172.08,26.5710265]
[1729760430365,50.3479105,172.13,172.05,6.4737]
[1729760430572,24.027864,172.12,172.07,26.5710265]
[1729760431766,0.25098,172.12,172.08,26.5710265]
[1729760432554,0.25098,172.12,172.07,26.5710265]
[1729760433853,23.776884,172.11,172.06,26.5710265]